fUST/lending_fUST_20250701
["ID","MTS","AMOUNT","RATE_DAILY","PERIOD"]
[368851126,1751376662800,-524.13,0.00020283,2]
[368851127,1751376662810,-3650.08,0.00020283,2]
[368851128,1751376662820,-787.8,0.00020283,2]
[368851129,1751376662832,-460.0,0.00020283,2]
[368851130,1751376662841,-460.0,0.00020283,2]
[368851131,1751376662853,-1272.84,0.00020283,2]
[368851132,1751376662862,-2622.27,0.00020283,2]
[368851133,1751376662872,-4856.27,0.00020283,2]
[368851134,1751376662882,-460.0,0.00020283,2]
[368851135,1751376662891,-1670.35,0.00020283,2]
[368851136,1751376662901,-460.0,0.00020283,2]
[368851137,1751376662911,-460.0,0.00020283,2]
[368851138,1751376662921,-460.0,0.00020283,2]
[368851139,1751376662932,-460.0,0.00020283,2]
[368851140,1751376662943,-632.08,0.00020283,2]
[368851141,1751376662953,-460.0,0.00020283,2]
[368851142,1751376662964,-460.0,0.00020283,2]
[368851143,1751376662974,-460.0,0.00020283,2]
[368851144,1751376662984,-2487.2,0.00020283,2]
[368851145,1751376662994,-2089.93,0.00020283,2]
[368851146,1751376663004,-460.0,0.00020283,2]
[368851147,1751376663015,-460.0,0.00020283,2]
[368851148,1751376663025,-1083.66,0.00020283,2]
[368851149,1751376663037,-2999.72,0.00020283,2]
[368851150,1751376663048,-2053.17,0.00020285,2]
[368851151,1751376663059,-1092.8,0.00020285,2]
[368851152,1751376663068,-1591.45,0.00020285,2]
[368851153,1751376663077,-501.26649892,0.00020348,2]
[368851154,1751376663087,-460.0,0.0002038,2]
[368851155,1751376663097,-460.0,0.0002038,2]
[368851156,1751376663107,-460.0,0.0002038,2]
[368851157,1751376663117,-460.0,0.0002038,2]
[368851158,1751376663127,-460.0,0.0002038,2]
[368851159,1751376663138,-629.01,0.0002038,2]
[368851160,1751376663147,-460.0,0.0002038,2]
[368851161,1751376663157,-460.0,0.0002038,2]
[368851162,1751376663167,-460.0,0.0002038,2]
[368851163,1751376663177,-460.0,0.0002038,2]
[368851164,1751376663187,-183.04,0.0002038,2]
[368851165,1751376663197,-460.0,0.0002038,2]
[368851166,1751376663206,-460.0,0.0002038,2]
[368851167,1751376663215,-642.37,0.0002038,2]
[368851168,1751376663225,-474.1,0.0002038,2]
[368851169,1751376663234,-474.54,0.0002038,2]
[368851170,1751376663244,-1394.04,0.0002038,2]
[368851171,1751376663254,-460.0,0.0002038,2]
[368851172,1751376663264,-603.08,0.0002038,2]
[368851173,1751376663274,-1256.82,0.0002038,2]
[368851174,1751376663286,-857.59,0.0002038,2]
[368851175,1751376663296,-460.0,0.0002038,2]
[368851176,1751376663306,-460.0,0.0002038,2]
[368851177,1751376663315,-460.0,0.0002038,2]
[368851178,1751376663325,-540.67,0.0002038,2]
[368851179,1751376663336,-460.0,0.0002038,2]
[368851180,1751376663346,-1100.95,0.0002038,2]
[368851181,1751376663357,-703.62,0.0002038,2]
[368851182,1751376663367,-513.66,0.0002038,2]
[368851183,1751376663377,-653.48,0.0002038,2]
[368851184,1751376663387,-495.49,0.0002038,2]
[368851185,1751376663397,-678.27,0.0002038,2]
[368851186,1751376663406,-460.0,0.0002038,2]
[368851187,1751376663416,-460.0,0.00020381,2]
[368851188,1751376663539,-460.0,0.00020381,2]
[368851189,1751376663549,-460.0,0.00020381,2]
[368851190,1751376663559,-823.93,0.00020381,2]
[368851191,1751376663570,-460.0,0.00020381,2]
[368851192,1751376663579,-460.0,0.00020381,2]
[368851193,1751376663589,-460.0,0.00020381,2]
[368851194,1751376663598,-460.0,0.00020381,2]
[368851195,1751376663607,-695.91,0.00020381,2]
[368851196,1751376663617,-460.0,0.00020381,2]
[368851197,1751376663626,-460.0,0.00020381,2]
[368851198,1751376663637,-460.0,0.00020381,2]
[368851199,1751376663646,-979.38,0.00020381,2]
[368851200,1751376663656,-460.0,0.00020381,2]
[368851201,1751376663666,-460.0,0.00020381,2]
[368851202,1751376663676,-460.0,0.00020381,2]
[368851203,1751376663686,-460.0,0.00020381,2]
[368851204,1751376663696,-6863.63929137,0.00020383,3]
[368851205,1751376663706,-460.0,0.00020383,2]
[368851206,1751376663715,-1129.1,0.00020383,2]
[368851207,1751376663725,-235.601984,0.00020383,2]
[368851208,1751376663735,-151.0,0.00020383,2]
[368851209,1751376663744,-151.0,0.00020383,2]
[368851210,1751376663755,-151.0,0.00020383,2]
[368851211,1751376663765,-560.45271043,0.00020383,2]
[368851212,1751376663776,-287.086593,0.00020383,2]
[368851213,1751376663788,-287.086593,0.00020383,2]
[368851214,1751376663798,-460.0,0.00020383,2]
[368851215,1751376663808,-460.0,0.00020383,2]
[368851216,1751376663818,-704.77,0.00020383,2]
[368851217,1751376663828,-460.0,0.00020383,2]
[368851218,1751376663838,-460.0,0.00020383,2]
[368851219,1751376663850,-768.12,0.00020383,2]
[368851220,1751376663859,-5015.81,0.00020383,2]
[368851221,1751376663869,-460.0,0.00020383,2]
[368851222,1751376663879,-737.94,0.00020383,2]
[368851223,1751376663889,-1161.05,0.00020383,2]
[368851224,1751376663898,-651.54,0.00020383,2]
[368851225,1751376663907,-460.0,0.00020383,2]
[368851226,1751376663917,-2469.46,0.00020383,2]
[368851227,1751376663927,-1448.72,0.00020383,2]
[368851228,1751376663937,-460.0,0.00020383,2]
[368851229,1751376663947,-156.2,0.00020383,2]
[368851230,1751376663956,-460.0,0.00020384,2]
[368851231,1751376663966,-460.0,0.00020384,2]
[368851232,1751376663976,-3553.77,0.00020384,2]
[368851233,1751376663985,-460.0,0.00020384,2]
[368851234,1751376663995,-1753.82,0.00020384,2]
[368851235,1751376664004,-5531.74,0.00020384,2]
[368851236,1751376664015,-1794.4,0.00020384,2]
[368851237,1751376664025,-460.0,0.00020385,2]
[368851238,1751376664037,-460.0,0.00020386,2]
[368851239,1751376664047,-292.63,0.00020386,2]
[368851240,1751376664058,-460.0,0.00020386,2]
[368851241,1751376664068,-460.0,0.00020386,2]
[368851242,1751376664078,-460.0,0.00020386,2]
[368851243,1751376664089,-460.0,0.00020386,2]
[368851244,1751376664099,-3000.0,0.00020412,2]
[368851245,1751376664109,-450.0,0.00020416,2]
[368851246,1751376664119,-2400.0,0.00020416,2]
[368851247,1751376664129,-503.41346787,0.00020416,2]
[368851248,1751376664139,-945.03960472,0.00020416,2]
[368851249,1751376664148,-2000.0,0.00020416,2]
[368851250,1751376664158,-725.12864427,0.00020459,2]
[368851251,1751376664168,-5000.0,0.00020464,2]
[368851252,1751376664178,-25000.0,0.00020464,2]
[368851253,1751376664187,-1000.0,0.00020468,2]
[368851254,1751376664197,-617.98727377,0.00020468,2]
[368851255,1751376664206,-151.0,0.00020548,2]
[368851256,1751376664216,-460.0,0.00020557,2]
[368851257,1751376664226,-524.13,0.00020557,2]
[368851258,1751376664236,-3650.08,0.00020557,2]
[368851259,1751376664245,-787.8,0.00020557,2]
[368851260,1751376664254,-460.0,0.00020557,2]
[368851261,1751376664264,-460.0,0.00020557,2]
[368851262,1751376664274,-1272.84,0.00020557,2]
[368851263,1751376664284,-2622.27,0.00020557,2]
[368851264,1751376664293,-4856.27,0.00020557,2]
[368851265,1751376664303,-460.0,0.00020557,2]
[368851266,1751376664312,-1670.35,0.00020557,2]
[368851267,1751376664323,-460.0,0.00020557,2]
[368851268,1751376664333,-460.0,0.00020557,2]
[368851269,1751376664343,-460.0,0.00020557,2]
[368851270,1751376664353,-460.0,0.00020557,2]
[368851271,1751376664363,-632.08,0.00020557,2]
[368851272,1751376664372,-460.0,0.00020557,2]
[368851273,1751376664382,-460.0,0.00020557,2]
[368851274,1751376664391,-460.0,0.00020557,2]
[368851275,1751376664401,-2487.2,0.00020557,2]
[368851276,1751376664410,-2089.93,0.00020557,2]
[368851277,1751376664420,-460.0,0.00020557,2]
[368851278,1751376664430,-460.0,0.00020557,2]
[368851279,1751376664440,-1083.66,0.00020557,2]
[368851280,1751376664450,-2999.72,0.00020557,2]
[368851281,1751376664459,-2053.17,0.00020559,2]
[368851282,1751376664469,-1092.8,0.00020559,2]
[368851283,1751376664486,-1591.45,0.00020559,2]
[368851284,1751376664500,-251.45977128,0.00020576,2]
[368851285,1751376664511,-500.0,0.00020576,2]
[368851286,1751376664521,-1500.0,0.00020576,2]
[368851287,1751376664531,-572.436795,0.00020576,2]
[368851288,1751376664545,-587.0,0.00020589,2]
[368851289,1751376664555,-160.0,0.0002059,3]
[368851290,1751376664566,-12571.40790328,0.0002059,3]
[368851291,1751376664577,-847.53272281,0.0002059,3]
[368851292,1751376664588,-213.87551669,0.0002059,3]
[368851293,1751376664598,-1974.79,0.000206,2]
[368851294,1751376664608,-177.915,0.00020644,2]
[368851295,1751376664619,-818.414,0.00020644,2]
[368851296,1751376664629,-254.34,0.00020654,2]
[368851297,1751376664639,-460.0,0.00020654,2]
[368851298,1751376664649,-460.0,0.00020654,2]
[368851299,1751376664659,-460.0,0.00020654,2]
[368851300,1751376664669,-460.0,0.00020654,2]
[368851301,1751376664679,-629.01,0.00020654,2]
[368851302,1751376664689,-460.0,0.00020654,2]
[368851303,1751376664700,-548.17,0.00020654,2]
[368851304,1751376664710,-460.0,0.00020654,2]
[368851305,1751376664721,-460.0,0.00020654,2]
[368851306,1751376664731,-460.0,0.00020654,2]
[368851307,1751376664742,-460.0,0.00020654,2]
[368851308,1751376664752,-642.37,0.00020654,2]
[368851309,1751376664762,-474.1,0.00020654,2]
[368851310,1751376664772,-474.54,0.00020654,2]
[368851311,1751376664783,-1394.04,0.00020654,2]
[368851312,1751376664796,-510.4,0.00020654,2]
[368851313,1751376664806,-603.08,0.00020654,2]
[368851314,1751376664816,-1256.82,0.00020654,2]
[368851315,1751376664826,-857.59,0.00020654,2]
[368851316,1751376664837,-460.0,0.00020654,2]
[368851317,1751376664850,-460.0,0.00020654,2]
[368851318,1751376664860,-540.67,0.00020654,2]
[368851319,1751376664871,-460.0,0.00020654,2]
[368851320,1751376664882,-1100.95,0.00020654,2]
[368851321,1751376664892,-703.62,0.00020654,2]
[368851322,1751376664903,-513.66,0.00020654,2]
[368851323,1751376664913,-653.48,0.00020654,2]
[368851324,1751376664923,-495.49,0.00020654,2]
[368851325,1751376664934,-678.27,0.00020654,2]
[368851326,1751376664944,-460.0,0.00020655,2]
[368851327,1751376664954,-460.0,0.00020655,2]
[368851328,1751376664964,-426.25,0.00020655,2]
[368851329,1751376664974,-823.93,0.00020655,2]
[368851330,1751376664984,-460.0,0.00020655,2]
[368851331,1751376664994,-460.0,0.00020655,2]
[368851332,1751376665004,-460.0,0.00020655,2]
[368851333,1751376665014,-205.3,0.00020655,2]
[368851334,1751376665024,-695.91,0.00020655,2]
[368851335,1751376665035,-460.0,0.00020655,2]
[368851336,1751376665045,-460.0,0.00020655,2]
[368851337,1751376665056,-979.38,0.00020655,2]
[368851338,1751376665066,-452.51,0.00020655,2]
[368851339,1751376665076,-460.0,0.00020655,2]
[368851340,1751376665086,-460.0,0.00020655,2]
[368851341,1751376665096,-460.0,0.00020655,2]
[368851342,1751376665106,-284.706594,0.00020655,2]
[368851343,1751376665116,-460.0,0.00020657,2]
[368851344,1751376665126,-1129.1,0.00020657,2]
[368851345,1751376665136,-151.0,0.00020657,2]
[368851346,1751376665146,-151.0,0.00020657,2]
[368851347,1751376665156,-151.0,0.00020657,2]
[368851348,1751376665166,-151.0,0.00020657,2]
[368851349,1751376665176,-151.0,0.00020657,2]
[368851350,1751376665186,-201.699608,0.00020657,2]
[368851351,1751376665196,-201.699608,0.00020657,2]
[368851352,1751376665206,-151.0,0.00020657,2]
[368851353,1751376665216,-271.8,0.00020657,2]
[368851354,1751376665226,-271.8,0.00020657,2]
[368851355,1751376665236,-721.480194,0.00020657,2]
[368851356,1751376665246,-721.480194,0.00020657,2]
[368851357,1751376665256,-460.0,0.00020657,2]
[368851358,1751376665266,-460.0,0.00020657,2]
[368851359,1751376665276,-704.77,0.00020657,2]
[368851360,1751376665286,-460.0,0.00020657,2]
[368851361,1751376665296,-460.0,0.00020657,2]
[368851362,1751376665306,-768.12,0.00020657,2]
[368851363,1751376665316,-5015.81,0.00020657,2]
[368851364,1751376665453,-460.0,0.00020657,2]
[368851365,1751376665463,-737.94,0.00020657,2]
[368851366,1751376665472,-1161.05,0.00020657,2]
[368851367,1751376665482,-651.54,0.00020657,2]
[368851368,1751376665492,-460.0,0.00020657,2]
[368851369,1751376665502,-2469.46,0.00020657,2]
[368851370,1751376665512,-1448.72,0.00020657,2]
[368851371,1751376665521,-460.0,0.00020657,2]
[368851372,1751376665531,-460.0,0.00020658,2]
[368851373,1751376665542,-460.0,0.00020658,2]
[368851374,1751376665552,-3553.77,0.00020658,2]
[368851375,1751376665562,-460.0,0.00020658,2]
[368851376,1751376665571,-1753.82,0.00020658,2]
[368851377,1751376665581,-5531.74,0.00020658,2]
[368851378,1751376665591,-1794.4,0.00020658,2]
[368851379,1751376665600,-6863.63929137,0.00020659,3]
[368851380,1751376665610,-460.0,0.00020659,2]
[368851381,1751376665620,-460.0,0.0002066,2]
[368851382,1751376665630,-1500.0,0.00020712,2]
[368851383,1751376665639,-524.13,0.00020831,2]
[368851384,1751376665649,-3650.08,0.00020831,2]
[368851385,1751376665660,-787.8,0.00020831,2]
[368851386,1751376665669,-460.0,0.00020831,2]
[368851387,1751376665679,-460.0,0.00020831,2]
[368851388,1751376665689,-1272.84,0.00020831,2]
[368851389,1751376665698,-2622.27,0.00020831,2]
[368851390,1751376665708,-4856.27,0.00020831,2]
[368851391,1751376665717,-460.0,0.00020831,2]
[368851392,1751376665727,-1670.35,0.00020831,2]
[368851393,1751376665736,-460.0,0.00020831,2]
[368851394,1751376665746,-460.0,0.00020831,2]
[368851395,1751376665756,-460.0,0.00020831,2]
[368851396,1751376665767,-460.0,0.00020831,2]
[368851397,1751376665777,-460.0,0.00020831,2]
[368851398,1751376665787,-632.08,0.00020831,2]
[368851399,1751376665799,-460.0,0.00020831,2]
[368851400,1751376665809,-460.0,0.00020831,2]
[368851401,1751376665819,-2487.2,0.00020831,2]
[368851402,1751376665830,-2089.93,0.00020831,2]
[368851403,1751376665842,-460.0,0.00020831,2]
[368851404,1751376665852,-460.0,0.00020831,2]
[368851405,1751376665862,-1083.66,0.00020831,2]
[368851406,1751376665872,-2999.72,0.00020831,2]
[368851407,1751376665882,-2053.17,0.00020833,2]
[368851408,1751376665892,-1092.8,0.00020833,2]
[368851409,1751376665903,-1591.45,0.00020833,2]
[368851410,1751376665912,-1631.53944962,0.00020838,2]
[368851411,1751376665923,-460.0,0.00020928,2]
[368851412,1751376665933,-580.4,0.00020928,2]
[368851413,1751376665944,-460.0,0.00020928,2]
[368851414,1751376665954,-246.84,0.00020928,2]
[368851415,1751376665964,-629.01,0.00020928,2]
[368851416,1751376665973,-460.0,0.00020928,2]
[368851417,1751376665984,-257.47,0.00020928,2]
[368851418,1751376665994,-460.0,0.00020928,2]
[368851419,1751376666004,-460.0,0.00020928,2]
[368851420,1751376666014,-460.0,0.00020928,2]
[368851421,1751376666024,-642.37,0.00020928,2]
[368851422,1751376666034,-474.1,0.00020928,2]
[368851423,1751376666046,-474.54,0.00020928,2]
[368851424,1751376666056,-1394.04,0.00020928,2]
[368851425,1751376666066,-603.08,0.00020928,2]
[368851426,1751376666076,-1256.82,0.00020928,2]
[368851427,1751376666085,-857.59,0.00020928,2]
[368851428,1751376666096,-460.0,0.00020928,2]
[368851429,1751376666105,-460.0,0.00020928,2]
[368851430,1751376666114,-540.67,0.00020928,2]
[368851431,1751376666124,-460.0,0.00020928,2]
[368851432,1751376666134,-1100.95,0.00020928,2]
[368851433,1751376666144,-703.62,0.00020928,2]
[368851434,1751376666154,-513.66,0.00020928,2]
[368851435,1751376666165,-653.48,0.00020928,2]
[368851436,1751376666175,-495.49,0.00020928,2]
[368851437,1751376666185,-678.27,0.00020928,2]
[368851438,1751376666199,-460.0,0.00020929,2]
[368851439,1751376666210,-238.4,0.00020929,2]
[368851440,1751376666220,-823.93,0.00020929,2]
[368851441,1751376666229,-460.0,0.00020929,2]
[368851442,1751376666239,-460.0,0.00020929,2]
[368851443,1751376666253,-460.0,0.00020929,2]
[368851444,1751376666264,-695.91,0.00020929,2]
[368851445,1751376666274,-460.0,0.00020929,2]
[368851446,1751376666284,-460.0,0.00020929,2]
[368851447,1751376666299,-979.38,0.00020929,2]
[368851448,1751376666309,-460.0,0.00020929,2]
[368851449,1751376666318,-151.0,0.00020929,2]
[368851450,1751376666328,-159.486442,0.00020929,2]
[368851451,1751376666338,-159.486442,0.00020929,2]
[368851452,1751376666348,-460.0,0.00020929,2]
[368851453,1751376666358,-515.84,0.00020931,2]
[368851454,1751376666368,-1129.1,0.00020931,2]
[368851455,1751376666378,-460.0,0.00020931,2]
[368851456,1751376666389,-704.77,0.00020931,2]
[368851457,1751376666400,-460.0,0.00020931,2]
[368851458,1751376666411,-460.0,0.00020931,2]
[368851459,1751376666422,-768.12,0.00020931,2]
[368851460,1751376666433,-5015.81,0.00020931,2]
[368851461,1751376666449,-460.0,0.00020931,2]
[368851462,1751376666459,-737.94,0.00020931,2]
[368851463,1751376666470,-1161.05,0.00020931,2]
[368851464,1751376666480,-651.54,0.00020931,2]
[368851465,1751376666492,-460.0,0.00020931,2]
[368851466,1751376666502,-2469.46,0.00020931,2]
[368851467,1751376666512,-1448.72,0.00020931,2]
[368851468,1751376666523,-460.0,0.00020931,2]
[368851469,1751376666534,-460.0,0.00020932,2]
[368851470,1751376666547,-460.0,0.00020932,2]
[368851471,1751376666558,-3553.77,0.00020932,2]
[368851472,1751376666568,-460.0,0.00020932,2]
[368851473,1751376666579,-1753.82,0.00020932,2]
[368851474,1751376666590,-151.0,0.00020932,2]
[368851475,1751376666601,-228.513247,0.00020932,2]
[368851476,1751376666611,-5531.74,0.00020932,2]
[368851477,1751376666622,-1794.4,0.00020932,2]
[368851478,1751376666632,-460.0,0.00020933,2]
[368851479,1751376666642,-460.0,0.00020934,2]
[368851480,1751376666652,-6863.63929137,0.00020934,4]
[368851481,1751376666662,-500.0,0.0002096,2]
[368851482,1751376666672,-550.0,0.00020964,2]
[368851483,1751376666681,-6935.12651786,0.00021,2]
[368851484,1751376666692,-150.0,0.00021074,2]
[368851485,1751376666702,-524.13,0.00021105,2]
[368851486,1751376666712,-3650.08,0.00021105,2]
[368851487,1751376666723,-787.8,0.00021105,2]
[368851488,1751376666733,-460.0,0.00021105,2]
[368851489,1751376666744,-460.0,0.00021105,2]
[368851490,1751376666755,-1272.84,0.00021105,2]
[368851491,1751376666765,-2622.27,0.00021105,2]
[368851492,1751376666775,-4856.27,0.00021105,2]
[368851493,1751376666785,-460.0,0.00021105,2]
[368851494,1751376666800,-1670.35,0.00021105,2]
[368851495,1751376666810,-460.0,0.00021105,2]
[368851496,1751376666820,-460.0,0.00021105,2]
[368851497,1751376666830,-460.0,0.00021105,2]
[368851498,1751376666844,-460.0,0.00021105,2]
[368851499,1751376666854,-460.0,0.00021105,2]
[368851500,1751376666864,-632.08,0.00021105,2]
[368851501,1751376666874,-460.0,0.00021105,2]
[368851502,1751376666885,-460.0,0.00021105,2]
[368851503,1751376666895,-2487.2,0.00021105,2]
[368851504,1751376666906,-2089.93,0.00021105,2]
[368851505,1751376666916,-460.0,0.00021105,2]
[368851506,1751376666926,-460.0,0.00021105,2]
[368851507,1751376666936,-1083.66,0.00021105,2]
[368851508,1751376666946,-2999.72,0.00021105,2]
[368851509,1751376666956,-2053.17,0.00021107,2]
[368851510,1751376666966,-1092.8,0.00021107,2]
[368851511,1751376666976,-1591.45,0.00021107,2]
[368851512,1751376666986,-236.0187035,0.00021124,2]
[368851513,1751376666996,-2050.81,0.00021163,2]
[368851514,1751376667006,-460.0,0.00021202,2]
[368851515,1751376667016,-460.0,0.00021202,2]
[368851516,1751376667025,-629.01,0.00021202,2]
[368851517,1751376667035,-460.0,0.00021202,2]
[368851518,1751376667046,-365.09,0.00021202,2]
[368851519,1751376667056,-460.0,0.00021202,2]
[368851520,1751376667066,-460.0,0.00021202,2]
[368851521,1751376667076,-642.37,0.00021202,2]
[368851522,1751376667086,-474.1,0.00021202,2]
[368851523,1751376667096,-474.54,0.00021202,2]
[368851524,1751376667105,-1394.04,0.00021202,2]
[368851525,1751376667221,-603.08,0.00021202,2]
[368851526,1751376667231,-1256.82,0.00021202,2]
[368851527,1751376667241,-857.59,0.00021202,2]
[368851528,1751376667251,-460.0,0.00021202,2]
[368851529,1751376667261,-460.0,0.00021202,2]
[368851530,1751376667271,-540.67,0.00021202,2]
[368851531,1751376667282,-460.0,0.00021202,2]
[368851532,1751376667293,-1100.95,0.00021202,2]
[368851533,1751376667303,-703.62,0.00021202,2]
[368851534,1751376667315,-513.66,0.00021202,2]
[368851535,1751376667326,-653.48,0.00021202,2]
[368851536,1751376667336,-495.49,0.00021202,2]
[368851537,1751376667346,-678.27,0.00021202,2]
[368851538,1751376667355,-460.0,0.00021203,2]
[368851539,1751376667364,-151.0,0.00021203,2]
[368851540,1751376667373,-823.93,0.00021203,2]
[368851541,1751376667382,-151.0,0.00021203,2]
[368851542,1751376667392,-151.0,0.00021203,2]
[368851543,1751376667402,-460.0,0.00021203,2]
[368851544,1751376667413,-167.335476,0.00021203,2]
[368851545,1751376667424,-151.0,0.00021203,2]
[368851546,1751376667433,-167.335476,0.00021203,2]
[368851547,1751376667443,-151.0,0.00021203,2]
[368851548,1751376667453,-460.0,0.00021203,2]
[368851549,1751376667462,-152.39962,0.00021203,2]
[368851550,1751376667473,-222.82,0.00021203,2]
[368851551,1751376667482,-695.91,0.00021203,2]
[368851552,1751376667492,-460.0,0.00021203,2]
[368851553,1751376667501,-460.0,0.00021203,2]
[368851554,1751376667512,-979.38,0.00021203,2]
[368851555,1751376667523,-460.0,0.00021203,2]
[368851556,1751376667533,-151.0,0.00021203,2]
[368851557,1751376667544,-235.765599,0.00021203,2]
[368851558,1751376667554,-151.0,0.00021203,2]
[368851559,1751376667564,-460.0,0.00021203,2]
[368851560,1751376667574,-151.0,0.00021203,2]
[368851561,1751376667583,-151.0,0.00021203,2]
[368851562,1751376667594,-151.0,0.00021203,2]
[368851563,1751376667604,-1129.1,0.00021205,2]
[368851564,1751376667613,-547.46,0.00021205,2]
[368851565,1751376667623,-704.77,0.00021205,2]
[368851566,1751376667632,-460.0,0.00021205,2]
[368851567,1751376667642,-768.12,0.00021205,2]
[368851568,1751376667652,-5015.81,0.00021205,2]
[368851569,1751376667662,-460.0,0.00021205,2]
[368851570,1751376667671,-737.94,0.00021205,2]
[368851571,1751376667681,-1161.05,0.00021205,2]
[368851572,1751376667690,-651.54,0.00021205,2]
[368851573,1751376667700,-460.0,0.00021205,2]
[368851574,1751376667711,-2469.46,0.00021205,2]
[368851575,1751376667721,-1448.72,0.00021205,2]
[368851576,1751376667731,-460.0,0.00021205,2]
[368851577,1751376667741,-460.0,0.00021206,2]
[368851578,1751376667751,-460.0,0.00021206,2]
[368851579,1751376667761,-3553.77,0.00021206,2]
[368851580,1751376667771,-460.0,0.00021206,2]
[368851581,1751376667781,-1753.82,0.00021206,2]
[368851582,1751376667794,-5531.74,0.00021206,2]
[368851583,1751376667804,-1794.4,0.00021206,2]
[368851584,1751376667815,-198.648818,0.00021207,2]
[368851585,1751376667825,-151.0,0.00021207,2]
[368851586,1751376667835,-151.0,0.00021207,2]
[368851587,1751376667845,-151.0,0.00021207,2]
[368851588,1751376667854,-179.735468,0.00021207,2]
[368851589,1751376667864,-460.0,0.00021207,2]
[368851590,1751376667874,-151.0,0.00021207,2]
[368851591,1751376667885,-151.0,0.00021207,2]
[368851592,1751376667895,-151.0,0.00021207,2]
[368851593,1751376667906,-151.0,0.00021207,2]
[368851594,1751376667917,-281.925789,0.00021207,2]
[368851595,1751376667927,-281.925789,0.00021207,2]
[368851596,1751376667937,-151.0,0.00021207,2]
[368851597,1751376667947,-297.882111,0.00021207,2]
[368851598,1751376667957,-297.882111,0.00021207,2]
[368851599,1751376667967,-460.0,0.00021208,2]
[368851600,1751376667977,-6863.63929137,0.0002121,4]
[368851601,1751376667988,-2900.51457709,0.00021217,2]
[368851602,1751376667997,-524.13,0.00021379,2]
[368851603,1751376668007,-3650.08,0.00021379,2]
[368851604,1751376668018,-787.8,0.00021379,2]
[368851605,1751376668028,-460.0,0.00021379,2]
[368851606,1751376668040,-460.0,0.00021379,2]
[368851607,1751376668049,-1272.84,0.00021379,2]
[368851608,1751376668059,-2622.27,0.00021379,2]
[368851609,1751376668070,-4856.27,0.00021379,2]
[368851610,1751376668080,-460.0,0.00021379,2]
[368851611,1751376668091,-1670.35,0.00021379,2]
[368851612,1751376668101,-460.0,0.00021379,2]
[368851613,1751376668112,-460.0,0.00021379,2]
[368851614,1751376668123,-331.68,0.00021379,2]
[368851615,1751376668133,-460.0,0.00021379,2]
[368851616,1751376668144,-460.0,0.00021379,2]
[368851617,1751376668155,-632.08,0.00021379,2]
[368851618,1751376668165,-460.0,0.00021379,2]
[368851619,1751376668176,-460.0,0.00021379,2]
[368851620,1751376668187,-2487.2,0.00021379,2]
[368851621,1751376668197,-2089.93,0.00021379,2]
[368851622,1751376668208,-189.85,0.00021379,2]
[368851623,1751376668220,-460.0,0.00021379,2]
[368851624,1751376668231,-1083.66,0.00021379,2]
[368851625,1751376668241,-2999.72,0.00021379,2]